bitfinex/quotes_SOLUSD_20250814
["timestamp","ask_amount","ask_price","bid_price","bid_amount"]
[1755176239603,0.50000001,194.06,193.92,37.08]
[1755176239777,0.71,194.06,193.92,37.08]
[1755176239977,5.36884799,194.09,193.93,0.14216157]
[1755176240190,3.18459501,194.09,193.93,0.14216157]
[1755176240373,2.684595,194.09,193.93,0.14216157]
[1755176240872,2.684595,194.09,193.92,37.08]
[1755176241288,16.31621558,194.08,193.81,0.72921159]
[1755176241488,15.10621557,193.91,193.78,0.51604912]
[1755176241707,12.684595,194.09,193.15,88.77251856]
[1755176241708,0.71,193.9,193.79,12.86]
[1755176241891,26.0,193.82,193.8,37.08]
[1755176242199,41.10621557,193.82,193.81,55.46]
[1755176242403,0.71,193.9,193.81,55.46]
[1755176242603,15.10621557,193.89,193.81,55.46]
[1755176242771,2.68584003,194.0,193.81,55.46]
[1755176242772,2.68584003,194.0,193.81,55.97596924]
[1755176242969,0.71,194.02,193.81,55.97596924]
[1755176242970,15.10621557,194.01,193.82,0.14216157]
[1755176243314,26.0,193.9,193.84,0.14216157]
[1755176243511,26.0,193.9,193.84,0.65805096]
[1755176243668,26.0,193.92,193.86,0.14216157]
[1755176243873,0.71,194.03,193.88,0.14216157]
[1755176244071,0.71,194.03,193.9,0.14216157]
[1755176244397,15.10621557,194.02,193.91,55.46]
[1755176244599,0.71,194.08,193.92,0.65783813]
[1755176244791,2.684595,194.09,193.92,0.65783813]
[1755176245183,2.684595,194.09,193.92,0.14216157]
[1755176245507,26.0,194.0,193.94,0.14216157]
[1755176245806,15.10621557,194.08,193.96,0.14216157]
[1755176246103,15.81621557,194.08,193.93,37.1]
[1755176246289,15.10621557,194.04,193.94,55.44]
[1755176246484,15.81621557,194.04,193.83,0.515916]
[1755176246683,15.81621557,194.04,193.75,5.16104939]
[1755176246684,15.10621557,194.0,193.75,0.51612903]
[1755176246883,15.10621557,193.9,193.75,0.51612903]
[1755176247196,26.0,193.87,193.76,118.32972804]
[1755176247409,0.71,194.01,193.8,25.53313935]
[1755176247576,15.10621557,194.05,193.83,15.10621557]
[1755176247773,15.10621557,194.05,193.84,0.65805096]
[1755176248008,15.10621557,194.05,193.86,0.14216157]
[1755176248173,15.10621557,194.05,193.88,0.14216157]
[1755176248504,2.684595,194.09,193.85,15.10621557]
[1755176248505,2.684595,194.09,193.9,15.24837714]
[1755176248687,2.684595,194.09,193.92,15.24837714]
[1755176248882,2.684595,194.09,193.98,0.14216157]
[1755176249070,2.684595,194.09,194.0,15.24837714]
[1755176249274,2.684595,194.09,194.02,0.14216157]
[1755176249478,0.71,194.1,194.0,0.14216157]
[1755176249713,26.0,194.06,194.0,0.14216157]
[1755176249997,26.0,194.06,193.89,0.21324235]
[1755176249998,2.542495,194.08,194.02,0.14216157]
[1755176250207,0.06,194.13,194.01,92.89543734]
[1755176250208,0.06,194.13,194.04,0.14216157]
[1755176250708,0.06,194.13,194.01,37.61543734]
[1755176250709,0.06,194.13,194.06,0.14216157]
[1755176251004,0.06,194.13,193.94,41.10621557]
[1755176251005,0.06,194.13,193.98,0.14216157]
[1755176251207,0.06,194.13,193.46,59.313969]
[1755176251208,26.0,194.08,193.99,92.3]
[1755176251383,26.0,194.08,194.0,0.51546391]
[1755176251587,26.0,194.08,194.01,0.14216157]
[1755176251892,0.06,194.13,194.03,0.14216157]
[1755176252276,26.06,194.13,194.03,0.14216157]
[1755176252480,15.10621557,194.08,193.92,0.51567656]
[1755176252685,15.10621557,194.08,193.93,37.08]
[1755176252686,26.0,194.05,193.93,37.08]
[1755176252893,26.0,194.05,193.94,0.51562338]
[1755176253107,26.0,194.09,193.94,0.51562338]
[1755176253318,26.0,194.05,193.95,92.1]
[1755176253613,26.0,194.05,193.96,0.51557022]
[1755176253978,0.68,194.08,193.97,55.0]
[1755176253979,26.0,194.06,193.97,55.0]
[1755176254179,0.06,194.09,193.99,0.14216157]
[1755176254393,0.06,194.09,194.01,0.14216157]
[1755176254595,0.74,194.09,194.01,0.14216157]
[1755176254794,0.74,194.09,193.96,0.51557022]
[1755176254795,26.0,194.05,193.89,0.21324235]
[1755176255005,26.68,194.05,194.02,37.08]
[1755176255206,0.68,194.04,194.03,54.86]
[1755176255713,26.0,194.05,194.04,0.14216157]
[1755176256009,15.10621557,194.08,194.02,37.08]
[1755176256202,26.0,194.05,194.03,54.76]
[1755176256400,0.06,194.09,194.03,55.27538421]
[1755176256601,0.06,194.09,194.04,0.14216157]
[1755176256909,0.06,194.13,194.06,0.14216157]
[1755176257122,0.06,194.13,194.1,0.14216157]
[1755176257323,0.06,194.13,194.12,0.14216157]
[1755176257686,0.06,194.13,194.04,0.21324235]
[1755176257884,0.06,194.13,194.06,0.14216157]
[1755176258178,0.06,194.13,194.08,0.14216157]
[1755176258377,0.68,194.26,194.1,0.14216157]
[1755176258600,0.68,194.26,194.12,0.14216157]
[1755176258805,0.74,194.32,194.14,0.14216157]
[1755176258998,0.74,194.32,194.16,0.14216157]
[1755176259201,0.74,194.32,194.18,0.14216157]
[1755176259394,0.06,194.32,194.2,0.14216157]
[1755176259602,0.06,194.32,194.22,0.14216157]
[1755176259807,0.06,194.32,194.24,0.14216157]
[1755176260404,26.0,194.27,194.25,54.74]
[1755176260599,0.68,194.26,194.25,54.88216157]
[1755176260922,0.68,194.26,194.25,54.7]
[1755176261092,26.0,194.28,194.25,54.7]
[1755176261296,0.1,194.29,194.26,0.14216157]
[1755176261806,0.1,194.29,194.28,0.14216157]
[1755176261996,0.06,194.32,194.28,54.76216157]
[1755176262198,0.06,194.32,194.3,0.14216157]
[1755176262400,0.06,194.32,194.31,0.65680312]
[1755176263404,0.06,194.32,194.31,70.60680312]
[1755176263604,0.68,194.49,194.32,0.14216157]
[1755176263805,0.68,194.49,194.34,0.14216157]
[1755176264020,0.68,194.49,194.35,0.51453563]
[1755176264222,0.68,194.49,194.36,0.14216157]
[1755176264599,0.68,194.49,194.21,25.83186112]
[1755176264600,15.10621557,194.4,194.24,0.51482701]
[1755176264803,26.0,194.37,194.33,37.06]
[1755176265112,0.68,194.36,194.34,54.46]
[1755176265513,0.68,194.39,194.34,54.46]
[1755176265718,0.68,194.38,194.34,54.46]
[1755176265909,26.0,194.4,194.34,54.9745621]
[1755176266116,0.68,194.46,194.35,0.14216157]
[1755176266306,0.50000001,194.53,194.37,0.14216157]
[1755176266622,26.0,194.49,194.39,0.14216157]
[1755176266826,0.50000001,194.57,194.41,0.14216157]
[1755176267041,0.50000001,194.58,194.41,0.14216157]
[1755176267605,0.50000001,194.62,194.43,0.14216157]
[1755176267810,26.0,194.54,194.45,0.14216157]
[1755176268136,7.907487,194.57,194.46,0.51424457]
[1755176268351,0.68,194.57,194.46,0.51424457]
[1755176268508,0.68,194.56,194.45,0.14216157]
[1755176268706,0.68,194.61,194.45,1.34643259]
[1755176268907,0.50000001,194.72,194.47,15.24837714]
[1755176269104,25.13052865,194.81,194.47,15.24837714]
[1755176269105,0.68,194.65,194.49,0.14216157]
[1755176269342,0.68,194.65,194.47,15.10621557]
[1755176269343,0.68,194.65,194.53,0.14216157]
[1755176269509,0.50000001,194.76,194.55,0.14216157]
[1755176269702,0.68,194.69,194.55,0.14216157]
[1755176269908,0.68,194.74,194.57,0.14216157]
[1755176270206,0.68,194.74,194.56,16.53398026]
[1755176270207,0.68,194.74,194.59,0.14216157]
[1755176270412,0.68,194.74,194.56,16.02]
[1755176270413,0.68,194.74,194.61,0.14216157]
[1755176270819,0.68,194.74,194.63,0.14216157]
[1755176271005,0.68,194.81,194.65,0.14216157]
[1755176271338,8.149809,194.8,194.67,15.24837714]
[1755176271540,0.68,194.86,194.69,0.14216157]
[1755176271746,0.68,194.86,194.71,0.14216157]
[1755176271904,0.68,194.86,194.73,0.14216157]
[1755176272251,0.68,194.95,194.75,15.33]
[1755176272408,0.68,194.92,194.76,16.45182959]
[1755176273033,0.68,194.96,194.78,15.24837714]
[1755176273311,1.18000001,194.96,194.8,0.14216157]
[1755176273511,0.68,194.96,194.8,0.14216157]
[1755176273711,7.51877,194.98,194.82,15.47216157]
[1755176273948,0.68,195.01,194.84,0.14216157]
[1755176274242,0.68,195.01,194.86,0.14216157]
[1755176274427,0.68,195.01,194.88,0.14216157]
[1755176274639,0.68,195.01,194.89,0.51310995]
[1755176274840,15.10621557,195.0,194.9,53.76]
[1755176275065,26.0,194.97,194.91,0.14216157]
[1755176275248,26.0,194.89,194.76,0.69]
[1755176275455,26.68,194.89,194.77,54.21342609]
[1755176275652,26.0,194.89,194.78,53.7]
[1755176275852,0.68,194.88,194.78,53.7]
[1755176276240,0.68,194.9,194.79,0.51337337]
[1755176276550,0.68,194.9,194.77,36.98]
[1755176276729,0.50000001,194.89,194.78,53.7]
[1755176276930,26.68,194.9,194.79,0.51337337]
[1755176277167,26.68,194.9,194.8,0.14216157]
[1755176277458,26.68,194.9,194.77,36.98]
[1755176277459,26.0,194.86,194.77,36.98]
[1755176277629,0.50000001,194.88,194.77,36.98]
[1755176277630,27.18000001,194.85,194.77,36.98]
[1755176277826,27.18000001,194.85,194.78,53.58]
[1755176278021,0.14216157,194.99,194.78,53.58]
[1755176278249,0.14216157,195.04,194.78,53.58]
[1755176278558,0.14216157,194.98,194.77,36.98]
[1755176278731,0.14216157,194.98,194.55,10.0]
[1755176278732,0.14216157,194.93,194.67,36.96]
[1755176278927,0.14216157,194.92,194.68,78.72932068]
[1755176279550,10.14216157,194.92,194.68,78.72932068]
[1755176279764,0.14216157,194.92,194.68,78.72932068]
[1755176279938,41.78621557,194.91,194.68,78.72932068]
[1755176280134,15.10621557,194.77,194.68,78.72932068]
[1755176280336,0.68,194.82,194.7,15.10621557]
[1755176280521,0.65,194.88,194.73,0.14216157]
[1755176280729,0.65,194.88,194.74,0.68]
[1755176280954,0.65,194.88,194.75,53.38]
[1755176281158,0.65,194.88,194.77,0.14216157]
[1755176282359,0.65,194.87,194.75,36.96]
[1755176282656,0.65,194.87,194.76,53.8]
[1755176282834,26.0,194.79,194.76,53.8]
[1755176283243,26.65,194.79,194.76,53.8]
[1755176283550,0.65,194.78,194.76,53.8]
[1755176284150,10.0,194.95,194.76,53.8]
[1755176284151,0.65,194.88,194.77,0.82216157]
[1755176284338,17.50836634,195.1,194.79,0.14216157]
[1755176284650,17.50836634,195.1,194.81,0.14216157]
[1755176284651,2.701861,195.04,194.81,0.14216157]
[1755176284832,2.701861,195.04,194.83,0.14216157]
[1755176284833,2.051861,195.04,194.83,0.14216157]
[1755176285041,2.051861,195.04,194.79,15.10621557]
[1755176285042,0.65,195.03,194.85,0.14216157]
[1755176285348,0.65,195.03,194.87,0.14216157]
[1755176285524,0.65,195.03,194.77,15.33]
[1755176285525,0.65,195.03,194.89,0.14216157]
[1755176285720,0.65,195.03,194.78,0.51339973]
[1755176285925,0.65,195.03,194.83,0.14216157]
[1755176286126,0.65,195.03,194.85,0.14216157]
[1755176286322,0.65,195.03,194.87,15.24837714]
[1755176286523,0.65,195.03,194.89,0.14216157]
[1755176286753,0.65,195.03,194.91,0.14216157]
[1755176286925,15.10621557,195.02,194.91,0.14216157]
[1755176287122,15.10621557,195.0,194.86,0.68]
[1755176287361,15.10621557,195.0,194.87,53.60216157]
[1755176287522,0.65,194.99,194.87,53.60216157]
[1755176287728,2.711473,195.02,194.87,53.60216157]
[1755176287927,2.711473,195.02,194.89,0.14216157]
[1755176288161,0.65,195.07,194.91,0.14216157]
[1755176288366,2.711474,195.07,194.93,15.24837714]
[1755176288566,2.71147377,195.12,194.95,15.24837714]
[1755176288860,2.71147377,195.12,194.97,15.24837714]
[1755176289032,0.06,195.12,194.99,30.57837714]
[1755176289230,0.06,195.14,195.05,15.10621557]
[1755176289433,0.1,195.24,195.08,0.14216157]
[1755176289661,0.1,195.24,195.07,15.10621557]
[1755176289662,0.1,195.24,195.1,15.24837714]
[1755176289862,0.1,195.24,195.09,54.69258393]
[1755176289863,0.1,195.24,195.12,0.14216157]
[1755176290043,0.1,195.24,195.14,0.14216157]
[1755176290243,0.1,195.24,195.16,15.24837714]
[1755176290436,0.1,195.24,195.18,15.24837714]
[1755176290635,3.361474,195.37,195.2,0.14216157]
[1755176290846,4.011474,195.37,195.22,0.14216157]
[1755176291157,3.361474,195.37,195.24,15.24837714]
[1755176291470,0.06,195.3,195.26,15.24837714]
[1755176291769,0.06,195.3,195.21,53.58]
[1755176291770,0.71,195.45,195.28,15.24837714]
[1755176291934,0.71,195.45,195.3,15.24837714]
[1755176292138,0.71,195.45,195.32,15.24837714]
[1755176292351,0.71,195.45,195.31,36.9]
[1755176292545,0.71,195.45,195.34,0.14216157]
[1755176292744,0.06,195.45,195.36,0.14216157]
[1755176292957,0.06,195.45,195.38,0.14216157]
[1755176293160,0.06,195.45,195.4,15.24837714]
[1755176293391,0.06,195.45,195.42,0.14216157]
[1755176293661,0.06,195.45,195.39,0.14216157]
[1755176293841,0.06,195.45,195.43,53.62]
[1755176294044,0.06,195.45,195.44,0.65382755]
[1755176294246,0.06,195.45,195.44,0.51166598]
[1755176294452,0.06,195.45,195.44,53.58]
[1755176294653,0.06,195.45,195.44,54.23382755]
[1755176294961,0.65,195.66,195.45,15.24837714]
[1755176295143,0.65,195.66,195.47,0.14216157]
[1755176295334,2.044415,195.65,195.49,0.14216157]
[1755176295535,0.65,195.64,195.51,0.14216157]
[1755176295760,0.65,195.64,195.5,36.88]
[1755176296269,26.0,195.52,195.51,53.48]
[1755176296560,15.10621557,195.6,195.51,53.48]
[1755176296944,0.65,195.59,195.51,53.48]
[1755176297167,15.10621557,195.58,195.51,53.48]
[1755176297373,15.10621557,195.61,195.51,53.48]
[1755176297559,0.65,195.57,195.51,53.48]
[1755176297740,26.0,195.53,195.5,36.88]
[1755176297940,26.0,195.53,195.37,0.68]
[1755176297941,15.10621557,195.48,195.41,36.88]
[1755176298180,0.65,195.53,195.42,53.34]
[1755176298345,0.65,195.5,195.42,53.34]
[1755176298671,0.65,195.5,195.41,36.88]
[1755176298672,15.10621557,195.49,195.43,53.42]
[1755176299073,0.65,195.5,195.43,53.42]
[1755176299252,15.10621557,195.59,195.45,0.14216157]
[1755176299449,15.10621557,195.57,195.46,0.51161362]
[1755176299851,0.65,195.57,195.46,0.51161362]
[1755176300145,0.65,195.62,195.48,0.14216157]
[1755176300339,0.65,195.62,195.5,0.14216157]
[1755176300541,0.65,195.62,195.52,0.14216157]
[1755176300892,0.06,195.69,195.54,15.24837714]
[1755176300893,0.65,195.66,195.54,15.24837714]
[1755176301053,0.06,195.69,195.56,0.14216157]
[1755176301054,2.044415,195.68,195.56,0.14216157]
[1755176301248,2.044415,195.68,195.58,15.24837714]
[1755176301453,0.06,195.69,195.6,0.14216157]
[1755176301756,0.06,195.69,195.62,15.24837714]
[1755176301946,0.06,195.69,195.64,15.24837714]
[1755176302146,0.06,195.69,195.63,54.37116904]
[1755176302147,0.06,195.69,195.66,15.24837714]
[1755176302452,0.06,195.69,195.68,0.14216157]
[1755176302653,0.06,195.69,195.59,36.84]
[1755176302654,0.06,195.69,195.63,0.14216157]
[1755176302848,0.06,195.69,195.64,53.14]
[1755176303046,0.65,195.68,195.64,53.14]
[1755176303262,26.0,195.63,195.59,36.84]
[1755176303548,26.0,195.58,195.53,36.84]
[1755176303873,0.65,195.63,195.52,36.84]
[1755176304175,0.65,195.63,195.54,0.51140431]
[1755176304352,0.65,195.63,195.3,12.80057176]
[1755176304353,26.0,195.62,195.49,36.82]
[1755176304565,26.0,195.62,195.51,15.10621557]
[1755176304755,26.0,195.62,195.54,0.14216157]
[1755176304969,26.0,195.62,195.53,0.51143047]
[1755176305272,0.65,195.61,195.54,53.06]
[1755176305474,0.65,195.61,195.5,36.82]
[1755176305475,26.0,195.53,195.5,36.82]
[1755176305652,0.65,195.52,195.47,36.82]
[1755176305847,26.0,195.48,195.47,36.82]
[1755176306254,26.0,195.51,195.47,36.82]
[1755176306556,26.0,195.65,195.36,0.68]
[1755176306557,26.0,195.46,195.42,36.82]
[1755176306763,0.65,195.45,195.42,36.82]
[1755176307177,0.65,195.44,195.39,36.82]
[1755176307355,26.0,195.46,195.39,36.82]
[1755176307356,0.65,195.43,195.39,36.82]
[1755176307556,26.65,195.42,195.39,36.82]
[1755176307752,0.65,195.41,195.39,36.82]
[1755176308082,26.0,195.33,195.32,36.82]
[1755176308399,26.0,195.33,195.32,89.6]
[1755176308684,26.65,195.33,195.32,89.6]
[1755176309352,26.0,195.33,195.32,89.6]
[1755176309685,0.65,195.42,195.32,89.6]
[1755176309885,0.65,195.48,195.33,15.76033126]
[1755176310183,0.65,195.55,195.35,15.24837714]
[1755176310349,0.65,195.55,195.32,94.71974614]
[1755176310350,0.66,195.6,195.37,30.57837714]
[1755176310555,0.66,195.6,195.39,30.57837714]
[1755176310867,0.66,195.6,195.41,0.14216157]
[1755176311075,15.10621557,195.59,195.4,52.64]
[1755176311274,15.10621557,195.57,195.4,52.64]
[1755176311579,26.0,195.42,195.4,52.64]
[1755176312078,36.0,195.6,195.4,52.64]
[1755176312293,0.66,195.41,195.4,52.64]
[1755176312498,15.10621557,195.37,195.32,36.82]
[1755176312688,26.0,195.33,195.32,36.82]
[1755176312991,15.10621557,195.37,195.28,0.03]
[1755176313197,26.0,195.34,195.28,0.03]
[1755176313405,26.0,195.3,195.28,0.03]
[1755176313886,26.0,195.34,195.29,52.5]
[1755176314491,41.47124509,195.53,195.29,52.5]
[1755176314492,26.0,195.3,195.29,53.01205898]
[1755176314689,26.0,195.4,195.3,0.14216157]
[1755176314911,0.66,195.48,195.32,0.14216157]
[1755176315078,0.66,195.48,195.31,1.17200655]
[1755176315079,15.10621557,195.47,195.34,0.14216157]
[1755176315398,0.66,195.48,195.36,0.14216157]
[1755176315567,16.11833202,195.66,195.38,15.24837714]
[1755176315568,0.66,195.54,195.38,15.24837714]
[1755176315764,0.66,195.54,195.4,0.14216157]
[1755176315965,0.66,195.54,195.41,52.87174453]
[1755176316164,0.66,195.59,195.42,15.90837714]
[1755176316365,0.66,195.59,195.44,15.24837714]
[1755176316660,0.66,195.59,195.44,0.14216157]
[1755176317081,26.0,195.51,195.44,0.14216157]
[1755176317390,15.10621557,195.54,195.43,36.82]
[1755176317594,26.0,195.51,195.43,36.82]
[1755176317762,26.0,195.47,195.43,36.82]
[1755176318090,26.0,195.47,195.41,52.36]
[1755176318091,0.66,195.46,195.41,52.36]
[1755176318465,26.66,195.45,195.41,52.36]
[1755176318668,1000.0,195.48,195.41,52.36]
[1755176318866,1000.0,195.48,195.42,15.90837714]
[1755176319220,1000.0,195.48,195.43,0.14216157]
[1755176319489,1000.0,195.48,195.43,0.80216157]
[1755176319707,1000.0,195.48,195.43,0.14216157]
[1755176320092,26.0,195.45,195.43,0.14216157]
[1755176320476,26.0,195.45,195.41,52.36]
[1755176320690,26.0,195.45,195.42,0.14216157]
[1755176320887,26.66,195.45,195.41,52.36]
[1755176321212,15.10621557,195.43,195.41,52.36]
[1755176321508,1000.0,195.48,195.4,36.85]
[1755176321509,26.0,195.41,195.4,36.85]
[1755176321706,26.66,195.41,195.4,36.85]
[1755176322217,41.76621557,195.41,195.4,36.85]
[1755176322792,41.76621557,195.41,195.4,0.03]
[1755176322989,57.11973057,195.41,195.4,0.03]
[1755176323911,15.10621557,195.4,195.39,22.24]
[1755176324076,15.76621557,195.4,195.39,22.24]
[1755176324505,26.0,195.29,195.28,36.85]
[1755176324808,41.76621557,195.29,195.28,36.85]
[1755176325921,26.0,195.17,195.13,36.82]
[1755176326105,15.76621557,195.16,195.14,51.58]
[1755176326307,15.76621557,195.15,195.14,51.58]
[1755176326607,15.10621557,195.21,195.2,0.2]
[1755176326907,15.76621557,195.21,195.2,0.2]
[1755176329102,41.10621557,195.17,195.14,51.58]
[1755176329296,15.10621557,195.15,195.14,51.58]
[1755176329494,15.76621557,195.15,195.14,51.44]
[1755176329682,0.66,195.19,195.14,51.44]
[1755176329883,15.10621557,195.22,195.14,51.44]
[1755176330208,0.66,195.23,195.14,51.44]
[1755176330403,15.10621557,195.26,195.14,51.44]
[1755176330603,26.0,195.17,195.14,51.44]
[1755176330793,15.10621557,195.16,195.14,51.44]
[1755176331186,15.76621557,195.15,195.14,51.44]
[1755176331415,26.0,195.15,195.14,51.44]
[1755176331925,15.10621557,195.23,195.14,51.44]
[1755176332085,26.0,195.16,195.14,51.44]
[1755176332704,15.10621557,195.15,195.14,51.44]
[1755176332915,0.66,195.21,195.14,51.44]
[1755176333126,26.0,195.17,195.14,51.44]
[1755176333324,41.10621557,195.14,195.13,36.82]
[1755176333617,41.10621557,195.14,195.13,88.28]
[1755176334493,26.0,195.15,195.13,88.28]
[1755176334814,15.10621557,195.23,195.13,88.28]
[1755176335114,15.10621557,195.21,195.13,88.28]
[1755176335290,15.10621557,195.17,195.13,88.28]
[1755176335505,26.0,195.14,195.13,88.28]
[1755176335938,41.10621557,195.14,195.13,88.28]
[1755176336289,26.0,195.14,195.13,88.28]
[1755176336484,41.10621557,195.14,195.13,88.28]
[1755176336710,26.0,195.14,195.13,88.28]
[1755176336911,41.10621557,195.14,195.13,88.28]
[1755176337321,26.0,195.14,195.13,88.28]
[1755176337488,41.10621557,195.14,195.13,88.28]
[1755176337819,41.76621557,195.14,195.13,88.28]
[1755176338127,41.76621557,195.14,195.1,0.03]
[1755176338128,41.10621557,195.11,195.1,0.03]
[1755176338297,15.10621557,195.1,195.08,0.03]
[1755176338492,15.76621557,195.1,195.09,51.46]
[1755176338800,0.66,195.1,195.09,51.46]
[1755176339795,0.66,195.1,195.08,0.03]
[1755176340005,41.10621557,195.12,195.08,0.03]
[1755176340006,15.76621557,195.09,195.08,0.03]
[1755176340322,15.370821,195.16,195.08,0.69]
[1755176340613,14.220821,195.16,195.09,0.51258393]
[1755176340987,26.0,195.2,195.1,51.46]
[1755176341189,2.049128,195.22,195.1,51.46]
[1755176341418,2.049128,195.22,195.11,0.65469296]
[1755176341593,2.049128,195.22,195.08,0.03]
[1755176341594,2.729128,195.22,195.12,36.88]
[1755176341923,15.10621557,195.2,195.13,51.46]
[1755176342330,0.68,195.2,195.13,51.46]
[1755176342531,15.10621557,195.21,195.13,51.46]
[1755176342733,2.049128,195.22,195.13,51.46]
[1755176343032,15.10621557,195.21,195.13,51.46]
[1755176343546,2.049128,195.22,195.14,0.51245259]
[1755176344041,2.049128,195.22,194.87,0.03]
[1755176344042,10.0,195.16,194.87,0.03]
[1755176344203,15.10621557,195.02,194.88,9.37]
[1755176344513,26.0,194.87,194.76,0.54345245]
[1755176344835,26.0,194.86,194.77,75.98]
[1755176345205,26.0,194.86,194.78,0.51339973]
[1755176345405,26.0,195.05,194.79,0.06]
[1755176345634,26.0,194.94,194.8,0.51334702]
[1755176345969,26.0,194.94,194.81,0.06]
[1755176346238,26.0,194.93,194.82,0.51329432]
[1755176346603,0.68,195.03,194.83,15.16621557]
[1755176346905,15.10621557,195.06,194.86,0.14216157]
[1755176347104,15.10621557,195.06,194.88,15.24837714]
[1755176347307,2.65443459,195.16,194.9,15.24837714]
[1755176347534,58.62218222,195.23,194.92,0.14216157]
[1755176347535,0.68,195.1,194.92,0.14216157]
[1755176347840,0.68,195.1,194.87,51.48]
[1755176347841,0.14216157,195.08,194.87,51.48]
[1755176348002,15.24837714,195.06,194.88,51.48]
[1755176348201,15.24837714,195.04,194.88,51.48]
[1755176348403,15.10621557,195.02,194.88,51.48]
[1755176348713,15.10621557,195.02,194.76,0.03]
[1755176348714,15.10621557,194.89,194.76,0.03]
[1755176348916,15.10621557,194.89,194.66,36.88]
[1755176348917,0.14216157,194.86,194.66,36.88]
[1755176349140,0.14216157,194.83,194.66,36.88]
[1755176349313,15.24837714,194.81,194.67,51.48]
[1755176349506,0.14216157,194.83,194.61,51.68]
[1755176349507,15.24837714,194.79,194.61,51.68]
[1755176349723,15.24837714,194.76,194.61,51.68]
[1755176349926,15.10621557,194.72,194.61,51.68]
[1755176350127,26.0,194.65,194.61,51.68]
[1755176351659,26.0,194.7,194.62,0.6038218]
[1755176351824,26.0,194.7,194.63,0.14216157]
[1755176352024,26.0,194.7,194.64,0.513769]
[1755176352256,15.403969,194.71,194.62,0.09]
[1755176352456,41.10621557,194.64,194.63,51.48]
[1755176352657,26.0,194.64,194.63,51.48]
[1755176353473,26.0,194.68,194.63,51.48]
[1755176353650,15.403969,194.71,194.63,51.9937954]
[1755176353850,15.403969,194.71,194.64,0.14216157]
[1755176354342,11.95100482,194.81,194.66,15.24837714]
[1755176354533,11.95100482,194.81,194.68,15.24837714]
[1755176354736,11.95100482,194.81,194.7,0.14216157]
[1755176355442,15.10621557,194.83,194.7,0.14216157]
[1755176355642,26.0,194.76,194.69,36.92]
[1755176355980,15.10621557,194.8,194.7,0.14216157]
[1755176356138,15.10621557,194.81,194.7,0.14216157]
[1755176356340,26.0,194.78,194.69,36.92]
[1755176356867,26.0,194.74,194.69,36.92]
[1755176357160,26.0,194.7,194.69,36.92]
[1755176357363,15.10621557,194.77,194.69,36.92]
[1755176358364,0.68,194.82,194.69,36.92]
[1755176358677,15.10621557,194.81,194.69,36.92]
[1755176358838,15.10621557,194.83,194.69,36.92]
[1755176359030,0.68,194.8,194.69,36.92]
[1755176359442,0.68,194.8,194.7,0.14216157]
[1755176359833,0.68,194.8,194.69,36.92]
[1755176360260,0.68,194.8,194.7,0.14216157]
[1755176360560,15.10621557,194.83,194.7,0.14216157]
[1755176360986,26.0,194.8,194.7,15.47216157]
[1755176361264,12.631005,194.84,194.7,15.24837714]
[1755176361460,0.68,194.84,194.7,15.24837714]
[1755176361661,26.0,194.8,194.7,15.24837714]
[1755176361963,15.10621557,194.87,194.71,0.09]